{"text_format":"2","workbook":"xlsx","n_sheets":2,"sheets":["AZ","ENG"],"not_rendered":{"charts":0,"images":0,"macros":0,"external_links":0,"defined_names":2,"comments":0,"pivot_tables":0},"unopened":[],"bounds":{"document_bytes":16777216,"sheet_cells":100000,"run_cost":"one","rows_first":2000,"rows_last":500,"rows_between":2000,"halvings":0,"cell_chars":16384,"cell_head_chars":4096},"cells_cut":0,"cells_raw":0,"read":"whole","date_system":"1900"}

{"sheet":"AZ","index":0,"n_rows":82,"n_cols":8,"rows_kept":82,"cut":false,"hidden":false,"merged":[[34,2,34,7],[78,1,78,2],[81,1,81,2],[78,4,78,5],[47,2,47,7],[48,2,48,7],[49,1,49,6],[37,1,37,7],[35,1,35,6],[3,1,3,9],[5,1,5,7],[0,1,1,9],[74,1,75,6],[74,7,75,7],[51,1,51,9],[61,1,61,9],[19,1,19,6],[59,1,59,6],[70,1,70,6],[17,2,17,7],[18,2,18,7],[58,2,58,7],[69,2,69,7],[21,1,21,7],[33,2,33,7]]}
[null,"Bakı, Mingəçevir və Tovuzda futbol meydanlarının salınması"]
[]
[]
[null,"Meydanın örtüyü"]
[]
[null,"Bayıl stadionu"]
[null,"№","Təsviri","Say","Ölçü vahidi","İstehsalçı ölkə","Vahidin qiyməti (AZN) ","TOPLAM (AZN) "]
[null,1,"Mövcud süni ot örtüyünün, qumun, rezinin və \"shock pad\" - in çıxarılması və xüsusi böyük torbalarla, borularla paketlənməsi"]
[null,2,"Süni ot örtüyü 4o mm-lik (1 meydança.111m x 74m )",8214,"m2",null,null,{"$f":"D9*G9","v":0}]
[null,3,"Ağ xəttlər",null,"m",null,null,0]
[null,4,"Yapışqan",null,"kg",null,null,0]
[null,5,"Montaj lenti",null,"m",null,null,0]
[null,6,"Kvars qumu",null,"t",null,null,0]
[null,7,"Rezin (SBR yaşıl)",null,"t",null,null,0]
[null,8,"\"Shock pad\" 12mm",8214,"m2",null,null,0]
[null,9,"Quraşdırılma",8214,"m2",null,null,0]
[null,10,"Nəqliyyat xərcləri",{"$nulls":4},0]
[null,"Qeyd 1","Xahiş edirik süni ot, \"shock pad\", qum və rezin nümunələrini və texniki parametrlərini təklif ilə birlikdə təqdim edin."]
[null,"Qeyd 2"," Meydanın  \"FİFA Quality Pro\" sertifikatının alınmasına təminat verilməlidir və  test xərcləri də qiymətə daxil olmalıdır."]
[null,"TOTAL",{"$nulls":5},{"$f":"SUM(H8:H17)","v":0}]
[]
[null,"Tovuz şəhər stadionu"]
[null,"№","Təsviri","Say","Ölçü vahidi","İstehsalçı ölkə","Vahidin qiyməti (AZN) ","TOPLAM (AZN) "]
[null,1,"Mövcud süni ot örtüyünün, qumun, rezinin və \"shock pad\" - in çıxarılması və xüsusi böyük torbalarla, borularla paketlənməsi"]
[null,2,"Süni ot örtüyü 4o mm-lik (1 meydança.111m x 74m )",8214,"m2",null,null,{"$f":"D25*G25","v":0}]
[null,3,"Ağ xəttlər",null,"m",null,null,0]
[null,4,"Yapışqan",null,"kg",null,null,0]
[null,5,"Montaj lenti",null,"m",null,null,0]
[null,6,"Kvars qumu",null,"t",null,null,0]
[null,7,"Rezin (SBR yaşıl)",null,"t",null,null,0]
[null,8,"\"Shock pad\" 12mm",8214,"m2",null,null,0]
[null,9,"Quraşdırılma",8214,"m2",null,null,0]
[null,10,"Nəqliyyat xərcləri",{"$nulls":4},0]
[null,"Qeyd 1","Xahiş edirik süni ot, \"shock pad\", qum və rezin nümunələrini və texniki parametrlərini təklif ilə birlikdə təqdim edin."]
[null,"Qeyd 2"," Meydanın  \"FİFA Quality Pro\" sertifikatının alınmasına təminat verilməlidir və  test xərcləri də qiymətə daxil olmalıdır."]
[null,"TOTAL",{"$nulls":5},{"$f":"SUM(H24:H33)","v":0}]
[]
[null,"Mingəçevir şəhər stadionunda məşq meydanı"]
[null,"№","Təsviri","Say","Ölçü vahidi","İstehsalçı ölkə","Vahidin qiyməti (AZN) ","TOPLAM (AZN) "]
[null,1,"Süni ot örtüyü 6o mm-lik (1 meydança.111m x 74m )",8214,"m2",null,null,{"$f":"D40*G40","v":0}]
[null,2,"Ağ xəttlər",null,"m",null,null,0]
[null,3,"Yapışqan",null,"kg",null,null,0]
[null,4,"Montaj lenti",null,"m",null,null,0]
[null,5,"Kvars qumu",null,"t",null,null,0]
[null,6,"Rezin (SBR qara)",null,"t",null,null,0]
[null,7,"Quraşdırılma",8214,"m2",null,null,0]
[null,8,"Nəqliyyat xərcləri",{"$nulls":4},0]
[null,"Qeyd 1","Xahiş edirik süni ot, \"shock pad\", qum və rezin nümunələrini və texniki parametrlərini təklif ilə birlikdə təqdim edin."]
[null,"Qeyd 2"," Meydanın  \"FİFA Quality Pro\" sertifikatının alınmasına təminat verilməlidir və  test xərcləri də qiymətə daxil olmalıdır."]
[null,"TOTAL",{"$nulls":5},{"$f":"SUM(H40:H47)","v":0}]
[]
[null,"Meydanın baxımı üçün avadanlıq"]
[]
[null,"№","Təsviri","Say","Vahid","İstehsalçı ölkə","Vahidin qiyməti (AZN) ","TOPLAM (AZN) "]
[null,1,"Traktor (ot üçün təkərli)",1,"ədəd",null,null,{"$f":"D55*G55","v":0}]
[null,2,"\"Drag mat\"",1,"ədəd",null,null,{"$f":"D56*G56","v":0}]
[null,3,"Üçbucaq fırça/daraq",1,"ədəd",null,null,0]
[null,4,"Ziq-zaq fırça/daraq",1,"ədəd",null,null,0]
[null,"Qeyd ","Xahiş edirik, məhsulların texniki göstəriciləri və sxemləri/fotoları əks olunan sənədi təkliflə birlikdə təqdim edəsiniz"]
[null,"TOTAL",{"$nulls":5},{"$f":"H58+H57+H56+H55","v":0}]
[]
[null,"Meydança inventarı"]
[]
[null,"№","Təsviri","Say","Vahid","İstehsalçı ölkə","Vahidin qiyməti (AZN) ","TOPLAM (AZN) "]
[null,1,"Əsas futbol qapısı (Alüminium, ağ, 7.32x2.44m)",6,"1 qapı",null,null,{"$f":"D65*G65","v":0}]
[null,2,"Daşınan futbol qapısı (Alüminium, 7.32x2.44m)",6,"1 qapı",null,null,{"$f":"D66*G66","v":0}]
[null,3,"Əsas qapı üçün tor (ağ, 7.32x2.44m)",6,"1 tor",null,null,{"$f":"D67*G67","v":0}]
[null,4,"Daşınan qapı üçün tor (ağ, 7.32x2.44m)",6,"1 tor",null,null,0]
[null,5,"Künc bayraqları və dirəkləri (ağ dirəklər və sarı bayraqlar) ",12,"ədəd",null,null,0]
[null,"Qeyd ","Xahiş edirik, məhsulların texniki göstəriciləri və sxemləri/fotoları əks olunan sənədi təkliflə birlikdə təqdim edəsiniz"]
[null,"TOTAL",{"$nulls":5},{"$f":"SUM(H65:H69)","v":0}]
[]
[]
[]
[null,"TOPLAM",{"$nulls":5},{"$f":"H71+H60+H50+H36+H20","v":0}]
[]
[]
[]
[null,"Şirkətin adı:",null,null,"Tarix:"]
[]
[]
[null,"İmza / möhür: "]

{"sheet":"ENG","index":1,"n_rows":82,"n_cols":8,"rows_kept":82,"cut":false,"hidden":false,"merged":[[59,1,59,6],[47,2,47,7],[48,2,48,7],[49,1,49,6],[18,2,18,7],[17,2,17,7],[21,1,21,7],[19,1,19,6],[78,1,78,2],[81,1,81,2],[0,1,1,7],[74,1,75,6],[74,7,75,7],[61,1,61,7],[58,2,58,7],[5,1,5,7],[3,1,3,7],[69,2,69,7],[70,1,70,6],[51,1,51,7],[33,2,33,7],[34,2,34,7],[35,1,35,6],[37,1,37,7]]}
[null,"Installation of football pitch in Baku, Mingachevir and Tovuz"]
[]
[]
[null,"Playing surface"]
[]
[null,"Bayil Stadium"]
[null,"№","Description","Quantity","Unit","Origin Country","Unit price (AZN) ","TOTAL (AZN) "]
[null,1,"Dismantling and packing of existing artificial grass, rubber, sand and shock pad big bags and tubes"]
[null,2,"Artificial grass cover 40 mm (1 pitch. 111m x 74m )",8214,"m2",null,null,{"$f":"G9*D9","v":0}]
[null,3,"White lines",null,"m",null,null,{"$f":"G10*D10","v":0}]
[null,4,"Glue",null,"kg",null,null,0]
[null,5,"Seaming tape",null,"m",null,null,0]
[null,6,"Sand",null,"t",null,null,0]
[null,7,"Rubber infill (SBR green)",null,"t",null,null,0]
[null,8,"Shock pad",8214,"m2",null,null,0]
[null,9,"Installation",8214,"m2",null,null,0]
[null,10,"Transport charges",{"$nulls":4},0]
[null,"Note 1","Please present artificial, shockpad, sand, rubber samples and technical details together with proposal"]
[null,"Note 2"," Lab testing and acquisition of FİFA Quality Pro certificate must be guaranteed and included in the price."]
[null,"TOTAL",{"$nulls":5},{"$f":"H9+H10+H11+H12+H13+H14+H15+H16+H17","v":0}]
[]
[null,"Tovuz City Stadium"]
[null,"№","Description","Quantity","Unit","Origin Country","Unit price (AZN) ","TOTAL (AZN) "]
[null,1,"Dismantling and packing of existing artificial grass, rubber, sand and shock pad big bags and tubes"]
[null,2,"Artificial grass cover 40 mm (1 pitch. 111m x 74m )",8214,"m2",null,null,{"$f":"G25*D25","v":0}]
[null,3,"White lines",null,"m",null,null,{"$f":"G26*D26","v":0}]
[null,4,"Glue",null,"kg",null,null,0]
[null,5,"Seaming tape",null,"m",null,null,0]
[null,6,"Sand",null,"t",null,null,0]
[null,7,"Rubber infill (SBR green)",null,"t",null,null,0]
[null,8,"Shock pad",8214,"m2",null,null,0]
[null,9,"Installation",8214,"m2",null,null,0]
[null,10,"Transport charges",{"$nulls":4},0]
[null,"Note 1","Please present artificial, shockpad, sand, rubber samples and technical details together with proposal"]
[null,"Note 2"," Lab testing and acquisition of FİFA Quality Pro certificate must be guaranteed and included in the price."]
[null,"TOTAL",{"$nulls":5},{"$f":"H25+H26+H27+H28+H29+H30+H31+H32+H33","v":0}]
[]
[null,"Training pitch in Mingachevir City Stadium"]
[null,"№","Description","Quantity","Unit","Origin Country","Unit price (AZN) ","TOTAL (AZN) "]
[null,1,"Artificial grass cover 60 mm (1 pitch. 111m x 74m )",8214,"m2",null,null,{"$f":"G40*D40","v":0}]
[null,2,"White lines",null,"m",null,null,{"$f":"G41*D41","v":0}]
[null,3,"Glue",null,"kg",null,null,0]
[null,4,"Seaming tape",null,"m",null,null,0]
[null,5,"Sand",null,"t",null,null,0]
[null,6,"Rubber infill (SBR black)",null,"t",null,null,0]
[null,7,"Installation",8214,"m2",null,null,0]
[null,8,"Transport charges",{"$nulls":4},0]
[null,"Note 1","Please present artificial, shockpad, sand, rubber samples and technical details together with proposal"]
[null,"Note 2"," Lab testing and acquisition of FİFA Quality Pro certificate must be guaranteed and included in the price."]
[null,"TOTAL",{"$nulls":5},{"$f":"H40+H41+H42+H43+H44+H45+H46+H47","v":0}]
[]
[null,"Pitch maintenance equipment"]
[]
[null,"№","Description","Quantity","Unit","Origin Country","Unit price (AZN) ","TOTAL (AZN) "]
[null,1,"Tractor with lawn tires",1,"item",null,null,{"$f":"G55*D55","v":0}]
[null,2,"Drag mat ",1,"item",null,null,{"$f":"G56*D56","v":0}]
[null,3,"Triangle brush",1,"item",null,null,0]
[null,4,"Zig-zag brush",1,"item",null,null,0]
[null,"Note "," Please present technical data document and drawings/photos for each good."]
[null,"TOTAL",{"$nulls":5},{"$f":"H58+H57+H56+H55","v":0}]
[]
[null,"Pitch inventory"]
[]
[null,"№","Description","Quantity","Unit","Origin Country","Unit price (AZN) ","TOTAL (AZN) "]
[null,1,"Fixed Goals (Aluminum, 7.32 x 2.44m)",6,"1 goal",null,null,{"$f":"G65*D65","v":0}]
[null,2,"Portable Goals (Aluminum, with rubber wheels)",6,"1 goal",null,null,{"$f":"G66*D66","v":0}]
[null,3,"Net for portable goal (white, 7.32x2.44m)",6,"1 net",null,null,0]
[null,4,"Net for fixed goals (white, 7.32x2.44m)",6,"1 net",null,null,0]
[null,5,"Corner flags with poles (white poles, yellow flags) ",12,"item",null,null,0]
[null,"Note ","Please present technical data document and drawings/photos for each good."]
[null,"TOTAL",{"$nulls":5},{"$f":"SUM(H65:H69)","v":0}]
[]
[]
[]
[null,"GRAND TOTAL",{"$nulls":5},{"$f":"H71+H60+H20+H50+H36","v":0}]
[]
[]
[]
[null,"Company name:",null,null,"Date:"]
[]
[]
[null,"Signature / stamp: "]